Cogmind - Beta 16 @@@ ROGUE MODE // 2025.12.31 @ 01:10:16 Player: McSaucyNugget Result: Destroyed by G-34 Mercenary with Small Laser Performance ------------- Evolutions (1) 500 Regions Visited (3) 600 Robots Destroyed (85) 425 Value Destroyed (1878) 1878 Prototype IDs (7) 140 Alien Tech Used (0) 0 Bonus (0) 0 TOTAL SCORE: 3543 Bonus ------- None Cogmind --------- Core Integrity 0/400 Matter 185/300 Energy 100/100 System Corruption 0% Temperature Cool (6) Movement Treading (320) Ox4 Location -9/Storage Parts ------- > --- POWER (1) -------- (None) > --- PROPULSION (3) --- Light Treads > --- UTILITY (2) ------ Huge Storage Unit > --- WEAPON (3) ------- Improved Medium Laser Light Assault Rifle > --- INVENTORY (25) --- Ion Engine Light Treads Light Treads Light Treads Light Treads Improved Treads Improved Treads Improved Treads Improved Treads Compact Wheel Large Storage Unit High-capacity Matter Pod (200) Shield Generator Advanced Beam Cannon Grenade Launcher Rocket Launcher Mini Grenade Launcher Mining Laser Peak State ------------ > --- POWER ------------ Heavy Ion Engine > --- PROPULSION ------- Improved Treads Improved Treads Improved Treads > --- UTILITY ---------- Huge Storage Unit Light Regenerative Plating > --- WEAPON ----------- Improved Medium Laser Improved Medium Laser Heavy Assault Rifle > --- INVENTORY -------- Ion Engine Light Treads Light Treads Light Treads Light Treads Light Treads Light Treads Improved Treads Improved Treads Improved Treads Improved Treads Compact Wheel Large Storage Unit High-capacity Matter Pod Medium Armor Plating Medium Armor Plating Shield Generator Improved EM Shotgun Advanced Beam Cannon Light Assault Rifle Light Assault Rifle Grenade Launcher Rocket Launcher Mini Grenade Launcher Mining Laser [Rating: 27] Favorites ----------- Power Ion Engine Engine Ion Engine Propulsion Light Treads Treads Light Treads Wheel Wheel Utility Medium Armor Plating Storage Large Storage Unit Processor Targeting Computer Hackware Hacking Suite Protection Medium Armor Plating Weapon Light Assault Rifle Energy Gun Improved Medium Laser Energy Cannon Advanced Beam Cannon Ballistic Gun Light Assault Rifle Launcher Mini Grenade Launcher Special Weapon Mining Laser Build | -11 -10 -9 -9 ------- Run | Yrd Mat Mat Sto Slots Evolved 2 | . . 2 . Power . | . . . . Propulsion 1 | . . 1 . Utility . | . . . . Weapon 1 | . . 1 . Parts Attached 41 | 6 7 19 9 Power 3 | 1 1 1 . Engine 3 | 1 1 1 . Core . | . . . . Reactor . | . . . . Propulsion 12 | 2 1 3 6 Treads 11 | 2 1 2 6 Leg . | . . . . Wheel 1 | . . 1 . Hover . | . . . . Flight . | . . . . Utility 13 | 1 3 7 2 Device . | . . . . Storage 4 | 1 1 2 . Processor 1 | . 1 . . Hackware 1 | . . 1 . Protection 7 | . 1 4 2 Artifact . | . . . . Weapon 13 | 2 2 8 1 Energy Gun 4 | 1 . 3 . Energy Cannon 1 | . . 1 . Ballistic Gun 5 | 1 2 2 . Ballistic Cannon . | . . . . Launcher 2 | . . 2 . Special Weapon 1 | . . . 1 Impact Weapon . | . . . . Slashing Weapon . | . . . . Piercing Weapon . | . . . . Special Melee Weapon . | . . . . Unidentified Prototypes 5 | . . 4 1 Parts Lost 15 | . 3 1 11 Power 2 | . 1 . 1 Propulsion 6 | . 1 1 4 Utility 2 | . . . 2 Weapon 5 | . 1 . 4 Highest Loss Streak 7 | . 3 1 7 To Critical Strikes . | . . . . Average Backups 16 | 3 12 18 22 Power 1 | . 1 1 1 Propulsion 5 | 1 2 3 9 Utility 3 | . 2 6 4 Weapon 6 | 1 5 6 7 Tool/Special . | . . . . Unused Backups 26 | . 4 9 13 Power 2 | . . 1 1 Propulsion 11 | . . 2 9 Utility 4 | . . 2 2 Weapon 9 | . 4 4 1 Tool/Special . | . . . . Average Slot Usage (%) 96 | . 96 95 97 Engine 11 | . 13 11 10 Treads 28 | . 28 25 32 Storage 12 | . 14 11 11 Processor 1 | . 4 . . Protection 8 | . 6 8 10 Energy Gun 11 | . 8 9 17 Ballistic Gun 18 | . 19 23 14 Peak Build Rating 27 | 6 10 20 27 Average Rating 13 | 4 8 14 20 On Entrance 8 | . 6 10 19 Avg Prop Armor Cover (%) 15 | . . 15 . Naked Turns . | . . . . Heaviest Build 104 | 13 35 104 104 Greatest Support 69 | 40 40 60 69 Greatest Overweight (x) 5 | . . 5 4 Average Overweight (x) . | . . 1 1 Largest Inventory Capacity 25 | 8 15 25 25 Average Capacity 19 | 7 14 19 25 Most Carried 25 | 5 15 20 25 Average Carried 17 | 3 12 18 22 Final Capacity 25 | 8 15 25 25 Final Carried 18 | 4 15 18 18 Class Distribution -------------------- 43% | Mutant 27% | Tank 12% | Scavenger-Tank 8% | Gunner 8% | Scavenger-Gunner Dominant Class ---------------- Mutant | -10/Materials Tank | -9/Materials Scavenger-Tank | -9/Storage Resources | -11 -10 -9 -9 ----------- Run | Yrd Mat Mat Sto Matter Collected 1499 | 267 186 327 719 Remotely . | . . . . Salvage Created 2941 | 99 626 877 1339 Parts 159 | 1 32 56 70 Haulers Intercepted 11 | . 1 6 4 Recyclers Shooed 5 | . 2 . 3 Parts Field Recycled . | . . . . Retrieved Matter . | . . . . Parts Self-Destructed . | . . . . Prevented . | . . . . Parts Restored . | . . . . Kills | -11 -10 -9 -9 ------- Run | Yrd Mat Mat Sto Combat Hostiles Destroyed 57 | . 14 14 29 Guns 47 | . 14 10 23 Cannons 1 | . . . 1 AOE 8 | . . 4 4 Classes Destroyed 13 | 1 6 3 3 Worker 6 | . 1 2 3 Builder 2 | . . 1 1 Hauler 11 | . 1 6 4 Recycler 2 | 1 1 . . Mechanic 1 | . 1 . . Operator 2 | . 1 . 1 Watcher 4 | . . 3 1 Swarmer 17 | . 6 4 7 Grunt 26 | . 8 6 12 Brawler 2 | . . . 2 Duelist 2 | . . . 2 Protector 1 | . . . 1 Sentry 9 | . . 4 5 Best Kill Streak 9 | 1 4 9 8 Combat Bots Only 5 | . 4 4 5 Max Kills in Single Turn 3 | 1 1 2 3 Gunslinging 1 | . . . 1 Exploded 2 | . . 2 2 Melee . | . . . . Uniques/NPCs Destroyed . | . . . . Combat | -11 -10 -9 -9 -------- Run | Yrd Mat Mat Sto Hostile Shots Fired 333 | . 82 61 190 Missed 67 | . 14 9 44 Hits 266 | . 68 52 146 Melee 15 | . . . 15 Projectile 251 | . 68 52 131 Critical Strikes 6 | . . . 6 Damage Taken 3502 | . 674 608 2220 Core 518 | . 113 30 375 Absorbed by Shields . | . . . . Regen/Repaired (Parts) 13 | . . . 13 Core Remaining (%) 77 | 100 54 . . Volleys Fired 245 | 7 94 53 91 Largest 3 | 2 2 3 3 Hottest 144 | 70 70 135 144 Shots Fired 593 | 14 187 151 241 Gun 572 | 14 187 147 224 Cannon 6 | . . . 6 Launcher 8 | . . 4 4 Special 7 | . . . 7 Kinetic 364 | 7 129 111 117 Thermal 209 | 7 58 36 108 Explosive 8 | . . 4 4 Electromagnetic 12 | . . . 12 Robot Hit Streak 20 | 3 12 20 15 Robot Miss Streak 7 | 2 4 7 5 Penetration Max . | . . . . Secondary Targets 3 | . . 1 2 Max Gunslinging Chain 1 | . . 1 1 Shots Hit Robots 370 | 9 119 104 138 Core Hits 150 | 2 37 46 65 Critical Kills 2 | . . 1 1 Critical Parts Destroyed 1 | . . . 1 Critical Strikes 16 | . 2 5 9 Burn 13 | . 2 4 7 Destroy 3 | . . 1 2 Melee Attacks . | . . . . Impact . | . . . . Slashing . | . . . . Piercing . | . . . . Sneak Attacks . | . . . . Combat Hostiles . | . . . . Follow-up Attacks . | . . . . Damage Inflicted 5451 | 88 1168 1409 2786 Guns 4217 | 88 1138 1114 1877 Cannons 124 | . . . 124 Explosions 1044 | . . 290 754 Melee . | . . . . Ramming 66 | . 30 5 31 Kinetic 2255 | 38 725 655 837 Thermal 1972 | 50 413 459 1050 Explosive 982 | . . 290 692 Electromagnetic 176 | . . . 176 Impact . | . . . . Slashing . | . . . . Piercing . | . . . . Highest Corruption 1 | . 1 . . Average Corruption 1 | . 1 . . Corruption Purged . | . . . . Corruption Blocked . | . . . . Effects 10 | . 10 . . Message Errors 2 | . 2 . . Matter Fused 1 | . 1 . . Energy Discharges 3 | . 3 . . Data Loss (minor) 2 | . 2 . . Alerts 2 | . 2 . . Overload Shots . | . . . . Overflow Damage 39 | . . 12 27 Projectiles . | . . . . Explosions 39 | . . 12 27 Melee . | . . . . Knockbacks . | . . . . Impact . | . . . . Kinetic . | . . . . Secondary . | . . . . Self-Inflicted Damage 105 | . . 2 103 Shots 3 | . . . 3 Rammed 11 | . 5 2 4 Targets Rammed 12 | . 5 2 5 Kicked . | . . . . Crushed 1 | . . . 1 Highest Temperature 537 | 110 220 307 537 Average Temperature 103 | 52 66 78 137 Received Heat Transfer 1260 | . 246 225 789 Effects 20 | . . 3 17 Shutdowns 3 | . . . 3 Energy Bleed 4 | . . 1 3 Interference 5 | . . 2 3 Matter Decay 4 | . . . 4 Damage (minor) 1 | . . . 1 Damage (major) 3 | . . . 3 Siege Activations . | . . . . Martial Activations . | . . . . Shielding Activations . | . . . . Robots Disrupted . | . . . . Combat Hostiles . | . . . . Robots Corrupted . | . . . . Combat Hostiles . | . . . . Parts Fried . | . . . . Impact Corruptions . | . . . . Robots Melted 1 | . . . 1 Combat Hostiles 1 | . . . 1 Parts Melted 12 | . 2 4 6 Heat Transferred 5473 | 148 1369 1295 2661 Parts Sabotaged . | . . . . Parts Stolen . | . . . . Parts Stripped . | . . . . Power Chain Reactions 1 | . . . 1 Alert | -11 -10 -9 -9 ------- Run | Yrd Mat Mat Sto Maximum Alert Level 1 | . 1 1 1 Low Security (%) 84 | 100 76 75 99 Level 1 15 | . 23 24 . Level 2 . | . . . . Level 3 . | . . . . Level 4 . | . . . . Level 5 . | . . . . High Security . | . . . . Max Security . | . . . . Peak Influence 255 | 5 238 255 215 Initial 98 | . . 52 98 Average 102 | . 130 85 92 Influence Increases 1875 | 5 527 480 863 Destroy 0b10 Robot/C 1120 | . 280 280 560 Destroy 0b10 Robot/NC 145 | 5 25 60 55 Destroy Leader 260 | . 52 78 130 Successful Hack 55 | . 34 6 15 Disable Machine 45 | . . 15 30 Destroy Structure 85 | . 1 41 43 Lose Combat Pursuer 165 | . 135 . 30 Influence Decreases 1703 | 5 402 370 926 Entered New Map 210 | . . 73 137 Time Decay 1172 | 5 372 297 498 Lost Part 140 | . 30 . 110 Lost Ally 31 | . . . 31 Purge Threat 150 | . . . 150 Squads Dispatched 8 | . 2 . 6 Investigation 2 | . 1 . 1 Extermination . | . . . . Reinforcement 2 | . 1 . 1 Assault 2 | . . . 2 Garrison 2 | . . . 2 Intercept . | . . . . Searches Triggered . | . . . . Construction Impeded . | . . . . Haulers Reinforced . | . . . . Active Scanning Responses . | . . . . Cargo Convoy Interrupts . | . . . . Stealth | -11 -10 -9 -9 --------- Run | Yrd Mat Mat Sto Distress Signals 10 | . 4 1 5 Communications Jammed . | . . . . Distress Signals . | . . . . Times Spotted 98 | . 37 22 39 Peak Tracking Total 8 | . 8 5 7 Tactical Retreats 6 | . 4 . 2 Traps | -11 -10 -9 -9 ------- Run | Yrd Mat Mat Sto Traps Triggered 4 | . 2 . 2 Indirectly . | . . . . Trap Hack Attempts . | . . . . Triggered . | . . . . Disarmed . | . . . . Reprogrammed . | . . . . Reused . | . . . . Traps Extracted . | . . . . Installed . | . . . . Triggered . | . . . . Machines | -11 -10 -9 -9 ---------- Run | Yrd Mat Mat Sto Machines Disabled 3 | . . 1 2 Max in Single Turn 1 | . . 1 1 Machines Repaired . | . . . . Machines Dismantled . | . . . . Machines Sabotaged . | . . . . Overloaded Fab Kills . | . . . . Hacking | -11 -10 -9 -9 --------- Run | Yrd Mat Mat Sto Machines Accessed 17 | . 9 3 5 Terminals 14 | . 8 2 4 Fabricators . | . . . . Repair Stations . | . . . . Recycling Units 1 | . 1 . . Scanalyzers 1 | . . 1 . Garrison Access 1 | . . . 1 Total Hacks 44 | . 22 8 14 Successful 17 | . 9 3 5 Failed 27 | . 13 5 9 Catastrophic 4 | . 2 1 1 Database Lockouts . | . . . . Manual 29 | . 18 4 7 Terminals 38 | . 20 6 12 Fabricators . | . . . . Repair Stations . | . . . . Recycling Units 2 | . 2 . . Scanalyzers 2 | . . 2 . Garrison Access 2 | . . . 2 Terminal Hacks 6 | . 2 1 3 Part Schematic 1 | . 1 . . Prototype ID Bank 1 | . . 1 . Open Door 1 | . . . 1 Terminal Index 1 | . . . 1 Unreport Threat 1 | . . . 1 Locate Traps 1 | . 1 . . Fabricator Hacks . | . . . . Repair Station Hacks . | . . . . Recycling Unit Hacks . | . . . . Scanalyzer 1 | . . 1 . Retrieve Study 1 | . . 1 . Garrison Access Hacks . | . . . . Unauthorized Hacks 10 | . 7 1 2 Terminals 10 | . 7 1 2 Botnet 1 | . 1 . . Skim 9 | . 6 1 2 Fabricators . | . . . . Repair Stations . | . . . . Recycling Units . | . . . . Scanalyzers . | . . . . Garrison Access . | . . . . Data Cores Recovered . | . . . . Used . | . . . . Hacking Detections 14 | . 6 3 5 Full Trace Events 1 | . . . 1 Feedback Events . | . . . . Feedback Blocked . | . . . . Robot Schematics Acquired . | . . . . Robots Built . | . . . . Authchips . | . . . . Time . | . . . . Total Robot Build Rating . | . . . . Part Schematics Acquired 1 | . 1 . . Parts Built . | . . . . Authchips . | . . . . Time . | . . . . Total Part Build Rating . | . . . . Part Studies Acquired 1 | . . 1 . Parts Repaired . | . . . . Time . | . . . . Parts Recycled . | . . . . Recycled Matter . | . . . . Retrieved Matter . | . . . . Retrieved Components . | . . . . Parts Scanalyzed . | . . . . Part Schematics Acquired . | . . . . Parts Damaged . | . . . . Bothacking | -11 -10 -9 -9 ------------ Run | Yrd Mat Mat Sto Used RIF Installer . | . . . . Robots Hacked . | . . . . Non-combat . | . . . . Combat . | . . . . Robot Hacks Applied . | . . . . Relay Couplers Released . | . . . . Fabnet Peak Effective % . | . . . . Robots Rewired . | . . . . Allies Hacked . | . . . . Hacks Repelled . | . . . . Allies | -11 -10 -9 -9 -------- Run | Yrd Mat Mat Sto Total Allies 2 | . . . 2 Largest Group 2 | . . . 2 Highest-Rated Group 62 | . . . 62 Highest-Rated Ally 31 | . . . 31 Total Orders . | . . . . Ally Attacks 4 | . . . 4 Total Damage 41 | . . . 41 Kills . | . . . . Allies Corrupted . | . . . . Allies Melted . | . . . . Intel | -11 -10 -9 -9 ------- Run | Yrd Mat Mat Sto Active Infowar (turns) . | . . . . Robot Analysis Total . | . . . . Derelict Logs Recovered . | . . . . Drone Launches . | . . . . Drone Recoveries . | . . . . Exploration | -11 -10 -9 -9 ------------- Run | Yrd Mat Mat Sto Turns Passed 4037 | 136 1562 1009 1330 Spaces Moved 1687 | 66 767 386 468 Core 1 | 1 . . . Treads 1580 | 65 767 280 468 Legs . | . . . . Wheels 106 | . . 106 . Hover . | . . . . Flight . | . . . . Fastest Speed 50 | 50 160 140 200 Average Speed 177 | 158 160 181 204 Slowest Speed 320 | 160 160 200 320 Overloaded Moves . | . . . . Propulsion Burnouts . | . . . . Robots Hopped . | . . . . Potential Cave-ins . | . . . . Cave-ins Triggered . | . . . . Exploration Rate (%) 54 | 6 97 45 71 Regions Visited 3 Branch Regions 1 Pre-discovered Areas 3 | . 3 . . Known Exits Taken 1 | . . 1 . Unknown Exits Taken 2 | 1 1 . . Scrap Searched . | . . . . Spaces Dug 4 | . . . 4 Terrain Destroyed 83 | . . 41 42 Melee . | . . . . Projectile 6 | . . . 6 AOE 77 | . . 41 36 Terrain Rammed . | . . . . Walls Destroyed . | . . . . Machines Disabled . | . . . . Actions | -11 -10 -9 -9 --------- Run | Yrd Mat Mat Sto Total 2261 | 83 939 599 640 Wait 183 | . 43 103 37 Move 1684 | 65 766 385 468 Hop . | . . . . Pick Up 42 | 5 17 14 6 Fast Attach 15 | 5 3 6 1 Attach 15 | 1 3 2 9 Detach 4 | . 2 1 1 Swap 32 | . 1 16 15 Drop 25 | . 5 17 3 Fire 245 | 7 94 53 91 Melee . | . . . . Ram 2 | . . 2 . Kick . | . . . . Crush 10 | . 5 . 5 Escape Stasis 4 | . . . 4 Rewire . | . . . . Trap . | . . . . Miscellaneous . | . . . . Route ------- -11/Scrapyard -10/Materials (discovered 5 exits: *Mat x3 / [*Min] / [*Sub]) -9/Materials (discovered 5 exits: [*Mat] / [*Min x2] / *Sto x2) -9/Storage (discovered 1 exit: [*Rec]) History --------- Turn | Location | Event 25 | -11/Scrapyard | Discovered new exit (range 16) 137 | -11/Scrapyard | Entered Materials 306 | -10/Materials | Build established: Mutant 389 | -10/Materials | Discovered new exit (range 10) 525 | -10/Materials | Discovered new exit (range 9) 907 | -10/Materials | Discovered new exit (range 14) 1096 | -10/Materials | Lost 3 parts (1p1n1w) 1244 | -10/Materials | Discovered new exit (range 10) 1387 | -10/Materials | Discovered new exit (range 16) 1464 | -10/Materials | Learned location of Subcaves (-10) 1509 | -10/Materials | Learned Storage trap positions 1543 | -10/Materials | Learned location of Storage (-9) 1583 | -10/Materials | Learned Storage stockpile data 1594 | -10/Materials | Learned Storage interactive machine intel 1617 | -10/Materials | Learned 2 Mines zone layouts 1652 | -10/Materials | Learned location of 2 exits from Subcaves 1699 | -10/Materials | Entered another Materials area 1699 | -9/Materials | Evolved 2 slots: Propulsion x1, Weapon x1 1700 | -9/Materials | Identified exit to Storage 1837 | -9/Materials | Discovered new exit (range 11) 1866 | -9/Materials | Discovered exit to Storage (range 15) 2326 | -9/Materials | Discovered new exit (range 8) 2371 | -9/Materials | Build established: Tank 2585 | -9/Materials | Discovered new exit (range 10) 2708 | -9/Materials | Entered Storage 2709 | -9/Storage | Loaded intel: 21 trap records 2711 | -9/Storage | Loaded intel: 19 interactive machine locations 2983 | -9/Storage | Used back door to open Recycling access 2983 | -9/Storage | Discovered new exit (range 5) 3014 | -9/Storage | Garrison activated, responded to threat 3197 | -9/Storage | Garrison activated, responded to threat 3330 | -9/Storage | Build established: Scavenger-Tank 3507 | -9/Storage | Found Prototype Protection 3507 | -9/Storage | Identified Lgt. Regenerative Plating 3808 | -9/Storage | Build established: Scavenger-Gunner 3838 | -9/Storage | Met a pair of Derelict thieves 3909 | -9/Storage | Core integrity fell below 50% 4019 | -9/Storage | Core integrity fell below 20% 4038 | -9/Storage | Destroyed by G-34 Mercenary with Small Laser Last Messages --------------- 04006_ K-01 Serf collects debris. 04007_ Critical hit (Burn: +37). 04007_ U-05 Engineer lays Concrete. 04008_ U-05 Engineer builds a Wall. 04010_ K-01 Serf collects debris. 04010_ U-05 Engineer builds a Wall. 04014_ U-05 Engineer lays Concrete. 04015_ U-05 Engineer builds a Wall. 04017_ Overheating: System interference. 04017_ Lgt. Assault Rifle temporarily disabled. 04021_ Overheating: System interference. 04021_ Imp. Medium Laser temporarily disabled. 04026_ R-06 Scavenger inserts Terrain Scanner into recycling unit. 04027_ Recycling unit begins recycling process. 04029_ R-06 Scavenger inserts Lrg. Battery into recycling unit. 04032_ Imp. Treads destroyed. 04032_ R-06 Scavenger inserts Beamcaster into recycling unit. 04033_ Recycling unit begins recycling process. 04034_ Recycling unit begins matter transfer process. 04035_ R-06 Scavenger inserts Carbon-fiber Leg into recycling unit. Map ----- +----------------------------------------------------+ | #######????????????????# ?????????????????????? | | ! ! #??????????????### ?????????????????????? | | #???????######## # #?????????????????????? | | #???????# # % ##????????????????????? | | ! #???????# """"" # #????????????????????? | | ######### """"" # #????????????????????? | | % + + """"" # % #?######?????????????? | | ####+## ## / #### = =#?????????????? | | ### ## """"" # %##T# == #?????????????? | | #?# ## """"" #% #=*" #?????????????? | | #?# % ## """"" #=% +%* =#?????????????? | | #?# ## #=% #= " = #?????????????? | | #?# ###+####### # # ==#?????????????? | | #?# ### #??#### %# #######?????????????? | | #### ####### ##########????????????? | | % =! # #????????????? | | #####+##### ####"=#% # "T" #????????????? | | #?#T%#???###### #??#### u/= #????????????? | | ####"#????????#/#?????#gY[# #????????????? | | # #?????????? [ ????# uu#=[ #????????????? | | ##????????? #???# g#% """" #????????????? | | ##???????# #???# #* """" #????????????? | | #???????# #???# # """"" #????????????? | | ###???????# = % #?? # # ??????????????? | | ######????#!* #?###r ##" "##???????????????? | | + / #?#""r@ #?"R"#????????????????? | | #######???# #?#"Y% #?"""#????????????????? | | #?????????# #?#"" #####?????????????????? | | ??????????#####+####?### #?????????????????????? | | ####??????????????????? ?????????????????????? | | #??????????????????? ?????????????????????? | | ??????????????????? ?????????^??????????? | | ! ???????????????????### ###????????????????????? | | [%#?????????????????????#+#???????????/??????????? | | *#????????????????????T?????????""?????""???????? | | #??????????????????????????????"Y?????""???????? | | ^^#??????????????????????????????""?????T"???????? | | ^[#?????????????????????????????????????""???????? | | !%#######?######????????????????????????""???????? | | ! +? #?????????????????????????????????? | | # ! #???????]?????????????????????????? | | # % #?????????????????????????????????? | | + #?????????????????????????????????? | | ####### #/ #??????^^?????????????????????????? | | ??????# # #??T???^^?????????????????????????? | | #?????#=#?######??????^^?????????????????????????? | | ######=#????????????????????????????????????????? | | #[#????????????????????????????????????????? | | " #%#????????????????????????????????????????? | | "G" #=#????###?????????????????????????????????? | +----------------------------------------------------+ Best States ------------- Heat Dissipation 28 Energy Generation 14 Energy Capacity 280 Matter Stores 300 Matter Capacity 300 Sight Range 16 Terrain Scan Density 10 Armor Coverage 225 Evasion (%) 40 Targeting Accuracy 5 Recoil Reduction 3 Offensive Hacking 10 Item Schematics ----------------- Huge Storage Unit | -10/Materials | Hacked Robot Schematics ------------------ None Fabricated ------------ Nothing Repaired ---------- Nothing Studied --------- Lgt. Treads | -9/Materials | Hacked Alien Tech Used ----------------- None Achievements -------------- None Challenges ------------ None Game ------ Seed SuperdenseTerrainPenetrator Manual? 0 Play Time 00:32:38 Cumulative 260.7 hours Start 2025.12.31 @ 00:29:41 End 2025.12.31 @ 01:10:16 Sessions 1 Manual Loads 0 Difficulty Rogue Special Mode None Game No. 110 Rogue 110 Adventurer 0 Explorer 0 Win Type - Total 26 Types 10/3/6/2/1/0/0/1/1/2 Lore% 79 Gallery% 76 Achievement% 61 Wizard Run 0 Options --------- Layout 0 ASCII 0 Keyboard 1 Movement Vi Keybinds 0 Fullscreen 2 Font 18/SmallcapsGlow Map View 76x50 Zoom Use 0% Tactical HUD 1 Map Filters NONE Filters NONE Steam 1 RUN: 10ba2d27-a16a-4a04-9a02-390262a2a367